bitfinex-derivatives/quotes_BTCF0:USTF0_20250904
["timestamp","ask_amount","ask_price","bid_price","bid_amount"]
[1757018251852,0.11418357,110320.0,110310.0,3.381782]
[1757018252053,0.11418357,110320.0,110310.0,4.8786036]
[1757018252259,0.11418357,110320.0,110310.0,5.08849833]
[1757018252963,0.11418357,110320.0,110310.0,4.26261833]
[1757018253260,0.11418357,110320.0,110310.0,5.08845833]
[1757018253468,0.11418357,110320.0,110310.0,4.8785636]
[1757018254363,0.11418357,110320.0,110310.0,5.08848777]
[1757018260363,0.11418357,110320.0,110310.0,4.8784836]
[1757018260560,0.11418357,110320.0,110310.0,4.0527236]
[1757018260765,0.11418357,110320.0,110310.0,4.8784836]
[1757018262071,0.10421357,110320.0,110310.0,4.8784836]
[1757018264171,0.10421357,110320.0,110310.0,4.0527236]
[1757018264476,0.10421357,110320.0,110310.0,4.8784836]
[1757018264672,0.76421357,110320.0,110310.0,4.7044641]
[1757018265473,0.76421357,110320.0,110310.0,4.70441831]
[1757018265773,0.76421357,110320.0,110310.0,4.69128831]
[1757018266472,0.76421357,110320.0,110310.0,3.5301433]
[1757018266473,0.77701357,110320.0,110310.0,3.5301433]
[1757018266667,0.77701357,110320.0,110310.0,4.2053633]
[1757018266973,1.02701357,110320.0,110310.0,4.2098933]
[1757018267173,1.02701357,110320.0,110310.0,4.54531831]
[1757018267568,1.02701357,110320.0,110310.0,3.8698933]
[1757018267768,1.02701357,110320.0,110310.0,3.7792438]
[1757018267971,1.02701357,110320.0,110310.0,3.6177525]
[1757018268172,1.02701357,110320.0,110310.0,2.7920325]
[1757018268173,1.36243858,110320.0,110310.0,2.7920325]
[1757018268376,1.36243858,110320.0,110310.0,3.6177925]
[1757018268771,1.36243858,110320.0,110310.0,3.7772838]
[1757018269277,1.36243858,110320.0,110310.0,3.7740842]
[1757018269475,1.36243858,110320.0,110310.0,3.6125929]
[1757018277885,1.02701357,110320.0,110310.0,3.6125929]
[1757018278186,1.36243858,110320.0,110310.0,3.6125929]
[1757018281285,1.11243858,110320.0,110310.0,3.6125929]
[1757018283985,0.77701357,110320.0,110310.0,3.6125929]
[1757018284188,1.11243858,110320.0,110310.0,3.6125929]
[1757018284389,1.11243858,110320.0,110310.0,3.6123929]
[1757018285788,0.77701357,110320.0,110310.0,3.6123929]
[1757018285979,1.11243858,110320.0,110310.0,3.6123929]
[1757018289091,0.77701357,110320.0,110310.0,3.94781791]
[1757018289287,0.76421357,110320.0,110310.0,4.03846741]
[1757018289492,0.76421357,110320.0,110310.0,4.89959242]
[1757018289680,0.76421357,110320.0,110310.0,4.72565871]
[1757018290492,0.76421357,110320.0,110310.0,4.56416741]
[1757018291593,0.76421357,110320.0,110310.0,4.56516741]
[1757018293494,0.72421357,110320.0,110310.0,4.90059242]
[1757018293690,0.10421357,110320.0,110310.0,5.06208372]
[1757018294091,0.09718806,110320.0,110310.0,5.06208372]
[1757018294292,0.09718806,110320.0,110310.0,5.53630789]
[1757018294499,0.09718806,110320.0,110310.0,5.37481659]
[1757018294794,0.08062063,110320.0,110310.0,5.37481659]
[1757018295597,0.08062063,110320.0,110310.0,5.37581659]
[1757018296095,0.08062063,110320.0,110310.0,5.37681659]
[1757018296296,0.07699063,110320.0,110310.0,5.37681659]
[1757018296596,0.07699063,110320.0,110310.0,5.11251659]
[1757018296794,0.01317063,110320.0,110310.0,5.11251659]
[1757018298194,0.01317063,110320.0,110310.0,5.26301659]
[1757018299194,0.01317063,110320.0,110310.0,5.26281659]
[1757018299401,0.0001,110330.0,110320.0,0.0906337]
[1757018299700,0.62,110330.0,110320.0,1.48634748]
[1757018299900,0.62,110330.0,110320.0,1.57699698]
[1757018300700,0.62,110330.0,110320.0,1.58152698]
[1757018301001,0.0001,110340.0,110330.0,0.0906255]
[1757018301194,0.03624,110350.0,110340.0,0.0906173]
[1757018301394,0.65614,110350.0,110340.0,0.4514173]
[1757018301899,0.99156501,110350.0,110340.0,0.4514173]
[1757018302201,0.99156501,110350.0,110340.0,1.2771773]
[1757018303010,0.65614,110350.0,110340.0,1.2771773]
[1757018303195,0.99156501,110350.0,110340.0,1.2771773]
[1757018304005,0.99156501,110350.0,110340.0,0.4514173]
[1757018304304,0.99156501,110350.0,110340.0,1.2771373]
[1757018305104,0.99156501,110350.0,110340.0,0.4514173]
[1757018305406,0.99156501,110350.0,110340.0,1.2771373]
[1757018305804,0.99156501,110350.0,110340.0,1.29559567]
[1757018306104,0.65614,110350.0,110340.0,1.55989567]
[1757018306302,0.99156501,110350.0,110340.0,1.55989567]
[1757018307304,0.65614,110350.0,110340.0,1.55989567]
[1757018307509,0.99156501,110350.0,110340.0,1.55989567]
[1757018308396,0.99156501,110350.0,110340.0,1.89532068]
[1757018308397,0.65614,110350.0,110340.0,1.89532068]
[1757018323012,0.63376,110350.0,110340.0,2.0566309]
[1757018323218,0.62,110350.0,110340.0,2.14729575]
[1757018323514,0.62,110350.0,110340.0,3.04272076]
[1757018323917,0.62,110350.0,110340.0,3.04725076]
[1757018324527,0.62,110350.0,110340.0,2.88594054]
[1757018325413,0.62,110350.0,110340.0,2.88552636]
[1757018325718,0.62,110350.0,110340.0,2.88596636]
[1757018325910,0.18,110350.0,110340.0,2.88596636]
[1757018326106,0.0129,110360.0,110350.0,0.0906098]
[1757018326310,0.71518,110360.0,110350.0,0.87708288]
[1757018326510,0.71518,110360.0,110350.0,1.2123008]
[1757018327117,0.71518,110360.0,110350.0,1.05092772]
[1757018327319,0.71518,110360.0,110350.0,1.5418298]
[1757018327621,0.71518,110360.0,110350.0,1.87704772]
[1757018327820,0.71518,110360.0,110350.0,1.95096511]
[1757018329020,0.71518,110360.0,110350.0,1.12484511]
[1757018329318,0.71518,110360.0,110350.0,1.95092511]
[1757018329622,1.05039792,110360.0,110350.0,1.12484511]
[1757018329817,1.05039792,110360.0,110350.0,1.95092511]
[1757018330614,0.71518,110360.0,110350.0,1.95092511]
[1757018335922,0.71518,110360.0,110350.0,1.95545511]
[1757018337715,0.71518,110360.0,110350.0,1.12937511]
[1757018338021,0.71518,110360.0,110350.0,1.95549511]
[1757018338921,1.05039792,110360.0,110350.0,1.62027719]
[1757018339125,0.71518,110360.0,110350.0,1.95549511]
[1757018342523,0.71518,110360.0,110350.0,2.11686819]
[1757018346128,0.71518,110360.0,110350.0,1.29074819]
[1757018346320,0.71518,110360.0,110350.0,2.11826819]
[1757018350932,0.71518,110360.0,110350.0,2.70826819]
[1757018353835,0.6928,110360.0,110350.0,2.70826819]
[1757018355033,0.6928,110360.0,110350.0,2.37305027]
[1757018355232,0.6928,110360.0,110350.0,2.70826819]
[1757018357639,0.6928,110360.0,110350.0,2.54689511]
[1757018357933,0.6928,110360.0,110350.0,2.88211303]
[1757018358130,0.34801792,110380.0,110370.0,0.02047]
[1757018358131,0.02177814,110380.0,110370.0,0.02047]
[1757018358329,0.40240098,110380.0,110370.0,2.34250944]
[1757018358531,0.40240098,110380.0,110370.0,2.66250944]
[1757018358740,0.64,110380.0,110370.0,2.66250944]
[1757018358936,0.64,110380.0,110370.0,2.82404479]
[1757018359240,0.64,110380.0,110370.0,2.82857479]
[1757018359433,0.64,110380.0,110370.0,2.91917501]
[1757018359637,0.46,110380.0,110370.0,2.91917501]
[1757018359832,0.46,110380.0,110370.0,2.93783116]
[1757018360139,0.46,110380.0,110370.0,2.94710761]
[1757018360438,0.46,110380.0,110370.0,2.78557226]
[1757018361138,0.46,110380.0,110370.0,1.62355434]
[1757018361338,0.46,110380.0,110370.0,1.78508969]
[1757018361540,0.46,110380.0,110370.0,2.61284969]
[1757018362636,0.46,110380.0,110370.0,2.76334969]
[1757018362836,0.46,110380.0,110370.0,2.61284969]
[1757018363141,0.46,110380.0,110370.0,2.45031434]
[1757018365447,0.46,110380.0,110370.0,2.71461434]
[1757018365750,0.46,110380.0,110370.0,1.88785434]
[1757018365950,0.46,110380.0,110370.0,2.71413434]
[1757018368948,0.46,110380.0,110370.0,3.04935226]
[1757018369150,0.46,110380.0,110370.0,2.22307226]
[1757018369350,0.46,110380.0,110370.0,3.04915226]
[1757018371056,0.46,110380.0,110370.0,2.22307226]
[1757018371256,0.46,110380.0,110370.0,3.04899226]
[1757018372657,0.46,110380.0,110370.0,3.21052761]
[1757018374358,0.46,110380.0,110370.0,3.21020761]
[1757018374556,0.46,110380.0,110370.0,1.71417177]
[1757018374755,0.46,110380.0,110370.0,2.87498969]
[1757018375060,0.46,110380.0,110370.0,2.04938969]
[1757018375360,0.4737,110380.0,110370.0,2.87506969]
[1757018376357,0.4737,110380.0,110370.0,2.53985177]
[1757018376557,0.4737,110380.0,110370.0,2.04938969]
[1757018377264,0.4737,110380.0,110370.0,2.87502969]
[1757018377463,0.6537,110380.0,110370.0,2.87502969]
[1757018377660,1.23891792,110380.0,110370.0,1.94617947]
[1757018377964,1.23891792,110380.0,110370.0,2.77189947]
[1757018379263,1.23891792,110380.0,110370.0,2.61036412]
[1757018380665,1.23891792,110380.0,110370.0,2.77189947]
[1757018382166,1.23891792,110380.0,110370.0,2.43668155]
[1757018382567,1.23891792,110380.0,110370.0,2.77189947]
[1757018383267,1.23891792,110380.0,110370.0,2.50759947]
[1757018384266,1.23891792,110380.0,110370.0,2.17238155]
[1757018384463,1.59584584,110380.0,110370.0,1.74115795]
[1757018384866,1.59584584,110380.0,110370.0,1.2188226]
[1757018385266,1.59584584,110380.0,110370.0,1.3094164]
[1757018385468,1.2606474,110380.0,110370.0,1.3094164]
[1757018390772,0.92541,110380.0,110370.0,1.3094164]
[1757018390973,0.67541,110380.0,110370.0,2.0054538]
[1757018393373,0.67541,110380.0,110370.0,1.6702164]
[1757018394975,1.0106474,110380.0,110370.0,1.6702164]
[1757018398079,1.2606474,110380.0,110370.0,0.8580626]
[1757018398280,1.2606474,110380.0,110370.0,0.9486569]
[1757018398579,1.6214474,110380.0,110370.0,0.9486569]
[1757018398976,1.2606474,110380.0,110370.0,1.3094569]
[1757018399986,1.2606474,110380.0,110370.0,1.2188626]
[1757018401386,1.0106474,110380.0,110370.0,1.2188626]
[1757018402185,1.0106474,110380.0,110370.0,1.3094573]
[1757018404789,1.0106474,110380.0,110370.0,1.2188626]
[1757018405890,1.0106474,110380.0,110370.0,1.3094573]
[1757018409795,0.67541,110380.0,110370.0,1.3094573]
[1757018410495,1.0106474,110380.0,110370.0,1.3094573]
[1757018413596,1.0106474,110380.0,110370.0,0.4146326]
[1757018413799,1.0106474,110380.0,110370.0,1.2401926]
[1757018415296,1.0106474,110380.0,110370.0,1.3307873]
[1757018415497,1.0106474,110380.0,110370.0,0.3932626]
[1757018415796,1.0106474,110380.0,110370.0,1.2188226]
[1757018416794,1.7066848,110380.0,110370.0,0.00453]
[1757018416993,1.9566848,110380.0,110370.0,0.00453]
[1757018417192,1.9566848,110380.0,110370.0,0.83009]
[1757018417193,1.6214474,110380.0,110370.0,0.83009]
[1757018419203,1.6214474,110380.0,110370.0,0.00453]
[1757018420686,1.9566848,110380.0,110370.0,0.00453]
[1757018420893,2.7822448,110380.0,110370.0,0.00453]
[1757018421197,0.03453,110370.0,110360.0,0.82556]
[1757018421398,1.4150048,110370.0,110360.0,0.82556]
[1757018433708,1.4150048,110370.0,110360.0,1.18636]
[1757018434208,1.4150048,110370.0,110360.0,1.18616]
[1757018438312,0.74453,110370.0,110360.0,1.2767625]
[1757018438512,1.0797674,110370.0,110360.0,1.2767625]
[1757018438909,1.4150048,110370.0,110360.0,1.2767625]
[1757018439111,1.0797674,110370.0,110360.0,1.2767625]
[1757018439506,1.0797674,110370.0,110360.0,1.18616]
[1757018440110,1.4150048,110370.0,110360.0,1.18616]
[1757018440911,1.4150048,110370.0,110360.0,1.2767625]
[1757018442814,1.0797674,110370.0,110360.0,1.2767625]
[1757018443014,1.0797674,110370.0,110360.0,1.2897225]
[1757018443803,1.0797674,110370.0,110360.0,1.2767625]
[1757018444115,0.74453,110370.0,110360.0,1.2767625]
[1757018444315,1.0797674,110370.0,110360.0,1.2767625]
[1757018446219,1.0797674,110370.0,110360.0,1.2988625]
[1757018446604,0.74453,110370.0,110360.0,1.2988625]
[1757018446804,1.0797674,110370.0,110360.0,1.2988625]
[1757018447411,1.07976997,110370.0,110360.0,1.2988625]
[1757018448517,1.07976997,110370.0,110360.0,0.4733825]
[1757018448715,1.07976997,110370.0,110360.0,1.2988625]
[1757018453020,0.74453,110370.0,110360.0,1.2988625]
[1757018453218,1.07976997,110370.0,110360.0,1.2988625]
[1757018454015,1.07976997,110370.0,110360.0,0.4733825]
[1757018454217,1.41500994,110370.0,110360.0,1.2768814]
[1757018454611,1.07976997,110370.0,110360.0,1.2768814]
[1757018456420,1.07976997,110370.0,110360.0,0.4731614]
[1757018456624,1.41500994,110370.0,110360.0,1.2986014]
[1757018457020,1.41500994,110370.0,110360.0,0.4731614]
[1757018457221,1.41500994,110370.0,110360.0,1.2986014]
[1757018457419,1.07976997,110370.0,110360.0,1.2986014]
[1757018457819,1.41500994,110370.0,110360.0,1.2768414]
[1757018458014,1.41500994,110370.0,110360.0,0.82544]
[1757018458315,1.41500994,110370.0,110360.0,1.208]
[1757018458522,1.41500994,110370.0,110360.0,1.2986014]
[1757018461022,1.41500994,110370.0,110360.0,0.4731614]
[1757018461224,1.41500994,110370.0,110360.0,1.2986014]
[1757018463330,1.41500994,110370.0,110360.0,1.2768414]
[1757018464127,0.74453,110370.0,110360.0,1.2768414]
[1757018464432,1.41500994,110370.0,110360.0,1.2768414]
[1757018465225,0.74453,110370.0,110360.0,1.2768414]
[1757018465423,1.41500994,110370.0,110360.0,1.2768414]
[1757018468028,1.07976997,110370.0,110360.0,1.2768414]
[1757018476835,1.07976997,110370.0,110360.0,0.4738314]
[1757018477035,1.07976997,110370.0,110360.0,1.2992314]
[1757018477924,1.41500994,110370.0,110360.0,1.2992314]
[1757018478130,1.41500994,110370.0,110360.0,0.4514014]
[1757018478430,1.41500994,110370.0,110360.0,1.2768014]
[1757018479437,1.41500994,110370.0,110360.0,0.4738314]
[1757018479633,1.41500994,110370.0,110360.0,1.2992314]
[1757018481036,1.41500994,110370.0,110360.0,1.20863]
[1757018481235,1.41500994,110370.0,110360.0,1.1862]
[1757018482637,1.41500994,110370.0,110360.0,1.2768013]
[1757018482837,1.41500994,110370.0,110360.0,0.4514013]
[1757018483036,1.41500994,110370.0,110360.0,1.2768013]
[1757018483243,0.74453,110370.0,110360.0,1.2768013]
[1757018483440,1.41500994,110370.0,110360.0,1.2768013]
[1757018487736,1.07976997,110370.0,110360.0,1.2768013]
[1757018488639,1.41500994,110370.0,110360.0,1.2768013]
[1757018489739,1.07976997,110370.0,110360.0,1.2768013]
[1757018489944,1.41500994,110370.0,110360.0,1.2768013]
[1757018490740,1.07976997,110370.0,110360.0,1.2768013]
[1757018491343,1.41500994,110370.0,110360.0,1.2768013]
[1757018491845,1.41500994,110370.0,110360.0,1.2768009]
[1757018492448,1.07976997,110370.0,110360.0,1.2768009]
[1757018494556,1.41500994,110370.0,110360.0,1.2768009]
[1757018494855,1.07976997,110370.0,110360.0,1.2768009]
[1757018496054,1.41500994,110370.0,110360.0,0.4738309]
[1757018496256,1.41500994,110370.0,110360.0,1.2991509]
[1757018496458,1.41500994,110370.0,110360.0,0.3608]
[1757018496652,1.41500994,110370.0,110360.0,1.18612]
[1757018497057,1.41500994,110370.0,110360.0,1.2767209]
[1757018499455,1.41500994,110370.0,110360.0,0.4738309]
[1757018499762,1.41500994,110370.0,110360.0,1.18608]
[1757018500262,1.41500994,110370.0,110360.0,0.82528]
[1757018501064,1.41500994,110370.0,110360.0,0.9158813]
[1757018501264,1.41500994,110370.0,110360.0,1.2766813]
[1757018503160,1.41500994,110370.0,110360.0,0.3608]
[1757018503365,1.41500994,110370.0,110360.0,1.18608]
[1757018504272,1.41500994,110370.0,110360.0,0.3608]
[1757018504570,1.41500994,110370.0,110360.0,1.18608]
[1757018507571,1.41516336,110370.0,110360.0,1.18608]
[1757018509278,1.41516336,110370.0,110360.0,1.276681]
[1757018510476,1.41516336,110370.0,110360.0,1.18608]
[1757018510673,1.41516336,110370.0,110360.0,1.276641]
[1757018511769,1.07984668,110370.0,110360.0,1.276641]
[1757018512676,1.41516336,110370.0,110360.0,1.276641]
[1757018513371,0.74453,110370.0,110360.0,1.276641]
[1757018513571,1.07984668,110370.0,110360.0,1.276641]
[1757018517977,1.07984668,110370.0,110360.0,0.474321]
[1757018518171,1.07984668,110370.0,110360.0,1.299521]
[1757018522873,1.07984668,110370.0,110360.0,1.312551]
[1757018523378,1.07984668,110370.0,110360.0,1.299521]
[1757018523578,1.07984668,110370.0,110360.0,1.299481]
[1757018537198,1.07984668,110370.0,110360.0,0.474321]
[1757018537495,1.07984668,110370.0,110360.0,1.299361]
[1757018537997,1.07984668,110370.0,110360.0,0.474321]
[1757018538195,1.07984668,110370.0,110360.0,1.299361]
[1757018538391,1.07984668,110370.0,110360.0,0.474321]
[1757018538598,1.07984668,110370.0,110360.0,1.299321]
[1757018539099,1.07984668,110370.0,110360.0,0.474321]
[1757018539294,1.07984668,110370.0,110360.0,1.299321]
[1757018539500,1.41516336,110370.0,110360.0,1.299321]
[1757018541096,1.41516336,110370.0,110360.0,0.3608]
[1757018541399,0.03608,110360.0,110350.0,0.60534477]
[1757018541699,0.99139668,110360.0,110350.0,1.42125274]
[1757018541999,0.99139668,110360.0,110350.0,1.25971739]
[1757018543410,0.99139668,110360.0,110350.0,1.35032649]
[1757018545016,0.99139668,110360.0,110350.0,1.25971739]
[1757018545211,0.99139668,110360.0,110350.0,1.35032669]
[1757018545409,0.99139668,110360.0,110350.0,0.89891739]
[1757018547415,0.99139668,110360.0,110350.0,0.92076739]
[1757018547715,0.99139668,110360.0,110350.0,0.89891739]
[1757018548409,0.99139668,110360.0,110350.0,0.07391739]
[1757018548609,0.03608,110340.0,110330.0,0.16153535]
[1757018548811,1.39671336,110340.0,110320.0,1.39568417]
[1757018549011,0.34820668,110330.0,110320.0,1.39568417]
[1757018549310,0.97820668,110330.0,110320.0,1.18576]
[1757018549815,0.97720668,110330.0,110320.0,1.18576]
[1757018550414,0.97720668,110330.0,110320.0,1.18776]
[1757018550715,0.97720668,110330.0,110320.0,1.2783939]
[1757018551217,0.97720668,110330.0,110320.0,1.18776]
[1757018551807,1.00039668,110330.0,110320.0,0.85773954]
[1757018552006,1.00039668,110330.0,110320.0,0.85573954]
[1757018553517,1.00039668,110330.0,110320.0,0.94637344]
[1757018554116,1.00039668,110330.0,110320.0,0.85513954]
[1757018555018,0.66508,110330.0,110320.0,0.85513954]
[1757018555220,1.00039668,110330.0,110320.0,0.94577344]
[1757018556720,0.66508,110330.0,110320.0,0.94577344]
[1757018556918,0.65319,110330.0,110320.0,1.31957344]
[1757018557118,0.98850668,110330.0,110320.0,1.31957344]
[1757018557823,0.65319,110330.0,110320.0,1.31957344]
[1757018558028,0.98850668,110330.0,110320.0,1.31957344]
[1757018560125,1.00139668,110330.0,110320.0,1.31957344]
[1757018565831,1.00139668,110330.0,110320.0,1.30657344]
[1757018566126,1.00139668,110330.0,110320.0,1.21593954]
[1757018568230,1.00139668,110330.0,110320.0,0.85513954]
[1757018568731,1.00139668,110330.0,110320.0,1.21593954]
[1757018569425,1.33718296,110330.0,110320.0,1.21593954]
[1757018570233,1.33718296,110330.0,110320.0,0.85513954]
[1757018571027,1.33718296,110330.0,110320.0,0.03077954]
[1757018571231,1.33718296,110330.0,110320.0,0.83392954]
[1757018574935,0.01379,110320.0,110310.0,0.42788]
[1757018575230,1.38666296,110320.0,110310.0,0.89208]
[1757018575437,1.72221444,110320.0,110310.0,0.86953]
[1757018577333,1.72221444,110320.0,110310.0,0.89208]
[1757018577540,1.72221444,110320.0,110310.0,0.86953]
[1757018577739,1.72221444,110320.0,110310.0,0.87867464]
[1757018578135,1.72221444,110320.0,110310.0,0.86953]
[1757018578329,1.97221444,110320.0,110310.0,0.86953]
[1757018579739,2.33301444,110320.0,110310.0,0.86953]
[1757018581245,2.08301444,110320.0,110310.0,0.86953]
[1757018584045,1.72221444,110320.0,110310.0,0.86953]
[1757018585445,2.08301444,110320.0,110310.0,0.86953]
[1757018587844,2.08301444,110320.0,110310.0,0.89208]
[1757018588043,1.72221444,110320.0,110310.0,0.89208]
[1757018588241,0.71556,110320.0,110310.0,0.89208]
[1757018588441,1.38666296,110320.0,110310.0,0.89208]
[1757018589247,0.71556,110320.0,110310.0,1.6063311]
[1757018589446,1.38666296,110320.0,110310.0,1.6063311]
[1757018589947,1.37287296,110320.0,110310.0,1.6063311]
[1757018590147,1.38666296,110320.0,110310.0,1.6063311]
[1757018590744,1.38666296,110320.0,110310.0,1.6262657]
[1757018593051,1.38666296,110320.0,110310.0,0.8012657]
[1757018593249,1.38666296,110320.0,110310.0,1.6262657]
[1757018594255,1.38666296,110320.0,110310.0,0.8012657]
[1757018594551,1.38666296,110320.0,110310.0,1.6262657]
[1757018594745,1.38666296,110320.0,110310.0,0.8012657]
[1757018594944,1.38666296,110320.0,110310.0,1.6262657]
[1757018595144,1.38666296,110320.0,110310.0,1.1620146]
[1757018595145,0.71556,110320.0,110310.0,1.1620146]
[1757018595346,1.38666296,110320.0,110310.0,1.1620146]
[1757018595853,1.38666296,110320.0,110310.0,1.1629746]
[1757018597958,1.38666296,110320.0,110310.0,0.3370146]
[1757018598155,1.38666296,110320.0,110310.0,1.1628146]
[1757018599462,1.38666296,110320.0,110310.0,0.3370146]
[1757018599757,1.38666296,110320.0,110310.0,1.1628146]
[1757018600157,1.72221444,110320.0,110310.0,1.1628146]
[1757018601161,2.08301444,110320.0,110310.0,1.1628146]
[1757018601361,1.72221444,110320.0,110310.0,1.1628146]
[1757018601958,1.38666296,110320.0,110310.0,1.1628146]
[1757018602160,1.72221444,110320.0,110310.0,1.1628146]
[1757018602459,1.38666296,110320.0,110310.0,1.1628146]
[1757018602658,0.71556,110320.0,110310.0,1.1626946]
[1757018602862,1.38666296,110320.0,110310.0,1.2533363]
[1757018604660,1.38666296,110320.0,110310.0,1.1640946]
[1757018604859,1.38666296,110320.0,110310.0,1.1641346]
[1757018607757,1.38666296,110320.0,110310.0,1.1664946]
[1757018616871,1.38666296,110320.0,110310.0,1.1666946]
[1757018631482,1.05115128,110320.0,110310.0,1.1666946]
[1757018634881,1.05115128,110320.0,110310.0,1.5274946]
[1757018638486,0.71556,110320.0,110310.0,1.5274946]
[1757018638684,1.05115128,110320.0,110310.0,1.5274946]
[1757018639876,1.03736128,110320.0,110310.0,1.380946]
[1757018640381,0.68,110320.0,110310.0,1.71653728]
[1757018640769,0.68,110320.0,110310.0,1.96653728]
[1757018641178,0.68,110320.0,110310.0,1.630946]
[1757018641484,0.68,110320.0,110310.0,1.380946]
[1757018641982,0.68,110320.0,110310.0,1.71653728]
[1757018643885,0.68,110320.0,110310.0,1.35573728]
[1757018644084,0.68,110320.0,110310.0,2.07733728]
[1757018644588,0.68,110320.0,110310.0,1.741746]
[1757018645982,0.68,110320.0,110310.0,2.32733728]
[1757018648188,0.68,110320.0,110310.0,2.48887263]
[1757018648991,0.68,110320.0,110310.0,2.32733728]
[1757018649486,0.68,110320.0,110310.0,2.32497728]
[1757018650788,0.68,110320.0,110310.0,1.49769728]
[1757018650983,0.68,110320.0,110310.0,2.32473728]
[1757018651287,0.68,110320.0,110310.0,1.49769728]
[1757018651483,0.68,110320.0,110310.0,1.989146]
[1757018653389,0.68,110320.0,110310.0,2.32473728]
[1757018657989,0.68,110320.0,110310.0,2.48627263]
[1757018659392,0.68,110320.0,110310.0,2.32473728]
[1757018660286,0.68,110320.0,110310.0,2.58903728]
[1757018660891,0.68,110320.0,110310.0,3.11903728]
[1757018661185,0.68,110320.0,110310.0,2.253446]
[1757018661386,0.68,110320.0,110310.0,3.15903728]
[1757018661579,0.68,110320.0,110310.0,2.58903728]
[1757018661790,0.68,110320.0,110310.0,3.13903728]
[1757018662286,0.2,110320.0,110310.0,3.47462856]
[1757018662494,0.2,110320.0,110310.0,3.13903728]
[1757018662693,0.2,110320.0,110310.0,3.30057263]
[1757018666499,0.2,110320.0,110310.0,2.96498135]
[1757018666794,0.2,110320.0,110310.0,3.30057263]
[1757018669291,0.2,110320.0,110310.0,3.45097263]
[1757018669496,0.2,110320.0,110310.0,3.30057263]
[1757018670100,0.2,110320.0,110310.0,2.47353263]
[1757018670293,0.2,110320.0,110310.0,2.96410135]
[1757018670490,0.2,110320.0,110310.0,3.29969263]
[1757018671305,0.2,110320.0,110310.0,2.47353263]
[1757018671495,0.2,110320.0,110310.0,2.96969263]
[1757018672394,0.2,110320.0,110310.0,2.14353263]
[1757018672602,0.2,110320.0,110310.0,2.96961263]
[1757018673407,0.2,110320.0,110310.0,2.14353263]
[1757018673594,0.2,110320.0,110310.0,2.96957263]
[1757018673795,0.2,110320.0,110310.0,2.96961263]
[1757018674001,0.2,110320.0,110310.0,1.80794135]
[1757018674300,0.53559128,110320.0,110310.0,2.38398135]
[1757018674500,0.2,110320.0,110310.0,2.38398135]
[1757018674702,0.2,110320.0,110310.0,2.71957263]
[1757018683911,0.2,110320.0,110310.0,1.55794135]
[1757018684100,0.2,110320.0,110310.0,2.71945263]
[1757018684505,0.35847128,110330.0,110320.0,0.0906345]
[1757018684701,0.98837128,110330.0,110320.0,0.4871845]
[1757018685010,1.25142128,110330.0,110320.0,0.4731946]
[1757018685204,1.25142128,110330.0,110320.0,1.2990346]
[1757018693408,1.2513506,110330.0,110320.0,1.2990346]
[1757018700526,1.5868712,110330.0,110320.0,0.8476]
[1757018700820,1.5868712,110330.0,110320.0,1.2990333]
[1757018701019,1.2513506,110330.0,110320.0,1.2990333]
[1757018701221,1.0013506,110330.0,110320.0,1.2990333]
[1757018702118,1.3368712,110330.0,110320.0,1.2990333]
[1757018703220,1.3368712,110330.0,110320.0,1.2084]
[1757018704421,1.3368712,110330.0,110320.0,1.2990334]
[1757018708222,1.3368712,110330.0,110320.0,0.9382334]
[1757018708423,1.3368712,110330.0,110320.0,1.2990334]
[1757018711020,1.0013506,110330.0,110320.0,1.2990334]
[1757018718824,0.03591,110320.0,110310.0,0.4478146]
[1757018719125,1.6824718,110320.0,110310.0,0.8899446]
[1757018719325,2.0432718,110320.0,110310.0,0.8899446]
[1757018719921,1.7077512,110320.0,110310.0,0.9124546]
[1757018720116,1.3469512,110320.0,110310.0,0.9124546]
[1757018721225,1.3469512,110320.0,110310.0,0.0870146]
[1757018721431,1.3469512,110320.0,110310.0,0.9124546]
[1757018723630,1.3469512,110320.0,110310.0,0.9124946]
[1757018727836,1.3469512,110320.0,110310.0,0.0870146]
[1757018728030,1.3469512,110320.0,110310.0,0.9125346]
[1757018734637,1.3469512,110320.0,110310.0,0.0870146]
[1757018734840,1.3469512,110320.0,110310.0,0.9125346]
[1757018737038,1.3469512,110320.0,110310.0,1.0031763]
[1757018737233,1.3469512,110320.0,110310.0,0.1776563]
[1757018737439,1.3469512,110320.0,110310.0,0.9125346]
[1757018740847,1.3469512,110320.0,110310.0,0.0870146]
[1757018741045,1.6824718,110320.0,110310.0,0.8900246]
[1757018741344,2.0432718,110320.0,110310.0,0.0645046]
[1757018741540,2.0432718,110320.0,110310.0,0.8900246]
[1757018745350,2.0432718,110320.0,110310.0,0.9125346]
[1757018745645,1.7077512,110320.0,110310.0,0.9125346]
[1757018745946,1.7077512,110320.0,110310.0,0.93093529]
[1757018750453,1.7077512,110320.0,110310.0,0.10541529]
[1757018750655,1.3469512,110320.0,110310.0,0.10541529]
[1757018750953,1.3469512,110320.0,110310.0,0.93089529]
[1757018753358,1.7077512,110320.0,110310.0,0.93089529]
[1757018755458,1.3723545,110320.0,110310.0,0.93089529]
[1757018758261,1.0115545,110320.0,110310.0,0.93089529]
[1757018761662,1.0115545,110320.0,110310.0,0.10541529]
[1757018761860,1.0115545,110320.0,110310.0,0.93085529]
[1757018762458,1.0115545,110320.0,110310.0,0.08290529]
[1757018762763,1.347199,110320.0,110310.0,0.90834529]
[1757018763360,1.347199,110320.0,110310.0,0.90830529]
[1757018763966,1.347199,110320.0,110310.0,0.93104529]
[1757018764168,1.347199,110320.0,110310.0,0.90830529]
[1757018765965,1.347199,110320.0,110310.0,0.93104529]
[1757018766166,1.0115545,110320.0,110310.0,0.93104529]
[1757018768471,1.0115545,110320.0,110310.0,0.90830529]
[1757018768766,1.0115545,110320.0,110310.0,0.93104529]
[1757018771070,1.0115545,110320.0,110310.0,0.90830529]
[1757018771772,1.0115545,110320.0,110310.0,0.93104529]
[1757018772671,1.3723545,110320.0,110310.0,0.93104529]
[1757018773472,1.3723545,110320.0,110310.0,0.90830529]
[1757018774778,1.3723545,110320.0,110310.0,0.08290529]
[1757018774964,1.707999,110320.0,110310.0,0.08290529]
[1757018775163,1.707999,110320.0,110310.0,0.90822529]
[1757018778174,1.3723545,110320.0,110310.0,0.93148529]
[1757018778575,1.0115545,110320.0,110310.0,0.93148529]
[1757018779379,1.0115545,110320.0,110310.0,1.64567839]
[1757018779581,0.9988445,110320.0,110310.0,1.64567839]
[1757018780572,0.64,110320.0,110310.0,1.98132289]
[1757018780777,0.64,110320.0,110310.0,1.64567839]
[1757018780976,0.9967245,110320.0,110310.0,1.64563839]
[1757018781172,0.66108,110320.0,110310.0,1.64563839]